[Event "Titled Tuesday Blitz July 25 Early 2023"]
[White "Tokman, Ariel"]
[Black "Bryakin, Mikhail"]
[WhiteFideId "117420"]
[BlackFideId "4165314"]
[WhiteElo "2526"]
[BlackElo "2737"]
[Result "0-1"]
[Round "6"]
[TimeControl "180+2"]
[Date "2023.07.25"]
[WhiteClock "0:00:00"]
[BlackClock "0:00:57"]
[Board "70"]

1. e4 {[%clk 0:03:00]}  d5 {[%clk 0:02:55]} 2. Nc3 {[%clk 0:02:58]}  d4 {[%clk 0:02:54]} 3. Nce2 {[%clk 0:02:58]}  c5 {[%clk 0:02:54]} 4. d3 {[%clk 0:02:58]}  Nc6 {[%clk 0:02:55]} 5. Nf3 {[%clk 0:02:58]}  g6 {[%clk 0:02:55]} 6. g3 {[%clk 0:02:59]}  Bg7 {[%clk 0:02:56]} 7. Bg2 {[%clk 0:03:00]}  e5 {[%clk 0:02:57]} 8. O-O {[%clk 0:03:00]}  Nf6 {[%clk 0:02:58]} 9. Nd2 {[%clk 0:03:01]}  O-O {[%clk 0:02:58]} 10. a4 {[%clk 0:03:01]}  Ne8 {[%clk 0:02:58]} 11. Nc4 {[%clk 0:03:02]}  Nd6 {[%clk 0:02:59]} 12. b3 {[%clk 0:02:51]}  Nxc4 {[%clk 0:02:58]} 13. bxc4 {[%clk 0:02:52]}  a5 {[%clk 0:02:58]} 14. f4 {[%clk 0:02:37]}  exf4 {[%clk 0:02:57]} 15. Nxf4 {[%clk 0:02:36]}  Ne5 {[%clk 0:02:53]} 16. Nd5 {[%clk 0:02:34]}  Be6 {[%clk 0:02:50]} 17. Rb1 {[%clk 0:02:30]}  Rb8 {[%clk 0:02:37]} 18. Bd2 {[%clk 0:02:14]}  Nc6 {[%clk 0:02:31]} 19. Qc1 {[%clk 0:02:09]}  Nb4 {[%clk 0:02:24]} 20. Bg5 {[%clk 0:02:05]}  f6 {[%clk 0:02:22]} 21. Bf4 {[%clk 0:02:03]}  Rc8 {[%clk 0:02:23]} 22. Qd1 {[%clk 0:01:35]}  Rc6 {[%clk 0:02:10]} 23. Rf2 {[%clk 0:01:14]}  Qd7 {[%clk 0:02:09]} 24. Bf1 {[%clk 0:01:13]}  f5 {[%clk 0:02:05]} 25. exf5 {[%clk 0:01:08]}  gxf5 {[%clk 0:02:00]} 26. Bg2 {[%clk 0:01:03]}  Ra6 {[%clk 0:01:53]} 27. Nc7 {[%clk 0:00:38]}  Rb6 {[%clk 0:01:44]} 28. Nxe6 {[%clk 0:00:37]}  Rxe6 {[%clk 0:01:45]} 29. Qf3 {[%clk 0:00:34]}  b6 {[%clk 0:01:41]} 30. h4 {[%clk 0:00:33]}  Rfe8 {[%clk 0:01:41]} 31. Kh2 {[%clk 0:00:31]}  Qxa4 {[%clk 0:01:41]} 32. Bh3 {[%clk 0:00:30]}  Rf8 {[%clk 0:01:37]} 33. Bg5 {[%clk 0:00:27]}  h6 {[%clk 0:01:32]} 34. Bxf5 {[%clk 0:00:22]}  Re5 {[%clk 0:01:33]} 35. Qg4 {[%clk 0:00:04]}  Qc6 {[%clk 0:01:06]} 36. Rbf1 {[%clk 0:00:01]}  hxg5 {[%clk 0:01:01]} 37. Qh5 {[%clk 0:00:02]}  Qh6 {[%clk 0:00:56]} 38. Qxh6 {[%clk 0:00:01]}  Bxh6 {[%clk 0:00:56]} 39. Bh7+ {[%clk 0:00:01]}  Kxh7 {[%clk 0:00:56]} 40. Rxf8 {[%clk 0:00:00]}  Bxf8 {[%clk 0:00:57]} 0-1


[Site "https://www.chess.com"]

[Event "Titled Tuesday Blitz July 25 Early 2023"]
[White "Skvortsov, Andrei"]
[Black "Mindhunter08"]
[WhiteFideId "24108600"]
[WhiteElo "2733"]
[BlackElo "2525"]
[Result "1-0"]
[Round "6"]
[TimeControl "180+2"]
[Date "2023.07.25"]
[WhiteClock "0:00:58"]
[BlackClock "0:00:00"]
[Board "72"]

1. e4 {[%clk 0:03:00]}  e5 {[%clk 0:02:54]} 2. d4 {[%clk 0:03:00]}  exd4 {[%clk 0:02:53]} 3. Qxd4 {[%clk 0:03:01]}  Nc6 {[%clk 0:02:53]} 4. Qd3 {[%clk 0:03:01]}  Nf6 {[%clk 0:02:52]} 5. Nc3 {[%clk 0:03:02]}  Bc5 {[%clk 0:02:52]} 6. Qg3 {[%clk 0:02:59]}  d6 {[%clk 0:02:34]} 7. Bg5 {[%clk 0:02:57]}  h6 {[%clk 0:02:19]} 8. Qh4 {[%clk 0:02:54]}  Be6 {[%clk 0:02:00]} 9. Bd3 {[%clk 0:02:52]}  Ne5 {[%clk 0:01:51]} 10. Bxf6 {[%clk 0:02:47]}  gxf6 {[%clk 0:01:49]} 11. Nge2 {[%clk 0:02:46]}  Rg8 {[%clk 0:01:46]} 12. O-O-O {[%clk 0:02:40]}  Qe7 {[%clk 0:01:30]} 13. Nf4 {[%clk 0:02:11]}  c6 {[%clk 0:00:56]} 14. h3 {[%clk 0:02:00]}  O-O-O {[%clk 0:00:52]} 15. g4 {[%clk 0:01:53]}  b5 {[%clk 0:00:20]} 16. Be2 {[%clk 0:01:47]}  Qc7 {[%clk 0:00:13]} 17. Nxe6 {[%clk 0:01:40]}  fxe6 {[%clk 0:00:13]} 18. Qxf6 {[%clk 0:01:41]}  Rde8 {[%clk 0:00:12]} 19. f4 {[%clk 0:01:38]}  Rgf8 {[%clk 0:00:07]} 20. Qxh6 {[%clk 0:01:36]}  Be3+ {[%clk 0:00:07]} 21. Kb1 {[%clk 0:01:35]}  Bxf4 {[%clk 0:00:08]} 22. Qh4 {[%clk 0:01:36]}  b4 {[%clk 0:00:08]} 23. Na4 {[%clk 0:01:35]}  Qa5 {[%clk 0:00:07]} 24. b3 {[%clk 0:01:35]}  Kc7 {[%clk 0:00:08]} 25. Rhf1 {[%clk 0:01:31]}  c5 {[%clk 0:00:06]} 26. g5 {[%clk 0:01:15]}  Be3 {[%clk 0:00:04]} 27. Qh7+ {[%clk 0:01:13]}  Kb8 {[%clk 0:00:02]} 28. Qg7 {[%clk 0:01:10]}  Rxf1 {[%clk 0:00:02]} 29. Bxf1 {[%clk 0:01:08]}  Bd4 {[%clk 0:00:02]} 30. Qh7 {[%clk 0:01:03]}  Qd8 {[%clk 0:00:02]} 31. h4 {[%clk 0:01:02]}  Rh8 {[%clk 0:00:03]} 32. Qg7 {[%clk 0:01:00]}  Rxh4 {[%clk 0:00:03]} 33. Ba6 {[%clk 0:00:58]}  Qc7 {[%clk 0:00:00]} 34. Qf8+ {[%clk 0:00:58]} 1-0


[Site "https://www.chess.com"]

[Event "Titled Tuesday Blitz July 25 Early 2023"]
[White "Shapiro, Viktor"]
[Black "Timmermans, Mark"]
[WhiteFideId "4175700"]
[BlackFideId "1026399"]
[WhiteElo "2519"]
[BlackElo "2732"]
[Result "1/2-1/2"]
[Round "6"]
[TimeControl "180+2"]
[Date "2023.07.25"]
[WhiteClock "0:00:20"]
[BlackClock "0:00:08"]
[Board "73"]

1. c4 {[%clk 0:03:00]}  Nf6 {[%clk 0:02:59]} 2. Nc3 {[%clk 0:03:01]}  e5 {[%clk 0:02:59]} 3. g3 {[%clk 0:03:01]}  d5 {[%clk 0:02:59]} 4. cxd5 {[%clk 0:03:01]}  Nxd5 {[%clk 0:03:00]} 5. Bg2 {[%clk 0:03:01]}  Nb6 {[%clk 0:03:00]} 6. Nf3 {[%clk 0:03:02]}  Nc6 {[%clk 0:03:00]} 7. d3 {[%clk 0:03:02]}  Be7 {[%clk 0:03:00]} 8. O-O {[%clk 0:03:02]}  O-O {[%clk 0:03:00]} 9. a3 {[%clk 0:03:03]}  Be6 {[%clk 0:03:00]} 10. Rb1 {[%clk 0:03:03]}  f6 {[%clk 0:02:56]} 11. b4 {[%clk 0:03:03]}  Qd7 {[%clk 0:02:56]} 12. Ne4 {[%clk 0:02:58]}  Nd5 {[%clk 0:02:47]} 13. Bb2 {[%clk 0:02:57]}  b6 {[%clk 0:02:47]} 14. d4 {[%clk 0:02:55]}  f5 {[%clk 0:02:45]} 15. Neg5 {[%clk 0:02:55]}  e4 {[%clk 0:02:45]} 16. Nxe6 {[%clk 0:02:53]}  Qxe6 {[%clk 0:02:46]} 17. Nd2 {[%clk 0:02:43]}  Rfd8 {[%clk 0:02:44]} 18. e3 {[%clk 0:02:42]}  a5 {[%clk 0:02:34]} 19. b5 {[%clk 0:02:42]}  Na7 {[%clk 0:02:34]} 20. Qb3 {[%clk 0:02:33]}  Kf7 {[%clk 0:02:33]} 21. Nc4 {[%clk 0:02:31]}  Bf6 {[%clk 0:02:27]} 22. f3 {[%clk 0:02:28]}  Nxe3 {[%clk 0:02:08]} 23. Qxe3 {[%clk 0:02:19]}  Qxc4 {[%clk 0:02:07]} 24. fxe4 {[%clk 0:02:19]}  Bxd4 {[%clk 0:02:02]} 25. Rxf5+ {[%clk 0:02:17]}  Kg8 {[%clk 0:02:00]} 26. Bxd4 {[%clk 0:02:16]}  Qxd4 {[%clk 0:02:01]} 27. Qxd4 {[%clk 0:02:05]}  Rxd4 {[%clk 0:02:02]} 28. e5 {[%clk 0:01:58]}  Re8 {[%clk 0:02:00]} 29. e6 {[%clk 0:01:58]}  Nc8 {[%clk 0:01:52]} 30. Rc1 {[%clk 0:01:52]}  Nd6 {[%clk 0:01:49]} 31. Re5 {[%clk 0:01:50]}  Re7 {[%clk 0:01:47]} 32. Bd5 {[%clk 0:01:44]}  g6 {[%clk 0:01:47]} 33. Bc6 {[%clk 0:01:39]}  Kg7 {[%clk 0:01:45]} 34. Rf1 {[%clk 0:01:36]}  Nc4 {[%clk 0:01:40]} 35. Re2 {[%clk 0:01:25]}  Rd6 {[%clk 0:01:35]} 36. Bd7 {[%clk 0:01:21]}  Rd5 {[%clk 0:01:13]} 37. a4 {[%clk 0:01:10]}  Ne5 {[%clk 0:01:06]} 38. Bc8 {[%clk 0:01:10]}  Nd3 {[%clk 0:01:01]} 39. Rf7+ {[%clk 0:00:57]}  Rxf7 {[%clk 0:00:58]} 40. exf7 {[%clk 0:00:58]}  Ne5 {[%clk 0:00:33]} 41. Be6 {[%clk 0:00:55]}  Rd1+ {[%clk 0:00:32]} 42. Kg2 {[%clk 0:00:55]}  Nxf7 {[%clk 0:00:33]} 43. Rc2 {[%clk 0:00:54]}  Ng5 {[%clk 0:00:27]} 44. Rxc7+ {[%clk 0:00:52]}  Kf6 {[%clk 0:00:28]} 45. Bc8 {[%clk 0:00:50]}  Rd2+ {[%clk 0:00:28]} 46. Kf1 {[%clk 0:00:47]}  Nf3 {[%clk 0:00:28]} 47. Bb7 {[%clk 0:00:40]}  Nxh2+ {[%clk 0:00:26]} 48. Ke1 {[%clk 0:00:41]}  Rd6 {[%clk 0:00:24]} 49. Rxh7 {[%clk 0:00:40]}  Ng4 {[%clk 0:00:24]} 50. Rc7 {[%clk 0:00:40]}  Ne5 {[%clk 0:00:23]} 51. Be4 {[%clk 0:00:37]}  Nd7 {[%clk 0:00:22]} 52. Rc6 {[%clk 0:00:35]}  Ke5 {[%clk 0:00:22]} 53. Bxg6 {[%clk 0:00:34]}  Nc5 {[%clk 0:00:22]} 54. Rxd6 {[%clk 0:00:32]}  Kxd6 {[%clk 0:00:23]} 55. Bc2 {[%clk 0:00:33]}  Ke5 {[%clk 0:00:23]} 56. Kf2 {[%clk 0:00:33]}  Ne6 {[%clk 0:00:23]} 57. Ke3 {[%clk 0:00:33]}  Nd4 {[%clk 0:00:23]} 58. Bd1 {[%clk 0:00:33]}  Nf5+ {[%clk 0:00:23]} 59. Kf3 {[%clk 0:00:33]}  Nd6 {[%clk 0:00:24]} 60. Kg4 {[%clk 0:00:32]}  Ne4 {[%clk 0:00:25]} 61. Bf3 {[%clk 0:00:31]}  Nc3 {[%clk 0:00:23]} 62. Kg5 {[%clk 0:00:30]}  Nxa4 {[%clk 0:00:24]} 63. Kh6 {[%clk 0:00:28]}  Nc3 {[%clk 0:00:21]} 64. g4 {[%clk 0:00:28]}  a4 {[%clk 0:00:19]} 65. g5 {[%clk 0:00:29]}  a3 {[%clk 0:00:20]} 66. g6 {[%clk 0:00:29]}  a2 {[%clk 0:00:19]} 67. g7 {[%clk 0:00:30]}  a1=Q {[%clk 0:00:19]} 68. g8=Q {[%clk 0:00:30]}  Qc1+ {[%clk 0:00:19]} 69. Kh5 {[%clk 0:00:29]}  Qf4 {[%clk 0:00:18]} 70. Qg7+ {[%clk 0:00:28]}  Kd6 {[%clk 0:00:17]} 71. Bg4 {[%clk 0:00:25]}  Nxb5 {[%clk 0:00:12]} 72. Qd7+ {[%clk 0:00:25]}  Kc5 {[%clk 0:00:12]} 73. Qe7+ {[%clk 0:00:21]}  Qd6 {[%clk 0:00:07]} 74. Qe3+ {[%clk 0:00:21]}  Qd4 {[%clk 0:00:07]} 75. Qe7+ {[%clk 0:00:21]}  Qd6 {[%clk 0:00:07]} 76. Qe3+ {[%clk 0:00:21]}  Nd4 {[%clk 0:00:08]} 77. Qa3+ {[%clk 0:00:20]}  Kc6 {[%clk 0:00:07]} 78. Qa8+ {[%clk 0:00:20]}  Kc7 {[%clk 0:00:07]} 79. Qa7+ {[%clk 0:00:20]}  Kc6 {[%clk 0:00:07]} 80. Qa8+ {[%clk 0:00:20]}  Kc7 {[%clk 0:00:08]} 81. Qa7+ {[%clk 0:00:20]}  Kc6 {[%clk 0:00:08]} 82. Qa8+ {[%clk 0:00:20]} 1/2-1/2


[Site "https://www.chess.com"]

[Event "Titled Tuesday Blitz July 25 Early 2023"]
[White "De Silva, L M S T"]
[Black "Jaskolka, Tomasz"]
[WhiteFideId "9953698"]
[BlackFideId "1170791"]
[WhiteElo "2730"]
[BlackElo "2517"]
[Result "0-1"]
[Round "6"]
[TimeControl "180+2"]
[Date "2023.07.25"]
[WhiteClock "0:00:04"]
[BlackClock "0:00:08"]
[Board "74"]

1. e4 {[%clk 0:03:00]}  d5 {[%clk 0:02:57]} 2. exd5 {[%clk 0:03:00]}  Nf6 {[%clk 0:02:57]} 3. Nc3 {[%clk 0:03:00]}  Nxd5 {[%clk 0:02:57]} 4. Nf3 {[%clk 0:02:53]}  Nxc3 {[%clk 0:02:57]} 5. bxc3 {[%clk 0:02:54]}  g6 {[%clk 0:02:58]} 6. d4 {[%clk 0:02:54]}  Bg7 {[%clk 0:02:58]} 7. Bd3 {[%clk 0:02:54]}  O-O {[%clk 0:02:58]} 8. O-O {[%clk 0:02:55]}  c5 {[%clk 0:02:58]} 9. Bb2 {[%clk 0:02:53]}  Nc6 {[%clk 0:02:54]} 10. Be4 {[%clk 0:02:33]}  Bg4 {[%clk 0:02:32]} 11. h3 {[%clk 0:02:27]}  Bxf3 {[%clk 0:02:32]} 12. Qxf3 {[%clk 0:02:28]}  cxd4 {[%clk 0:02:30]} 13. Rfd1 {[%clk 0:02:26]}  e5 {[%clk 0:02:25]} 14. cxd4 {[%clk 0:02:20]}  Qb6 {[%clk 0:02:20]} 15. Bxc6 {[%clk 0:02:15]}  Qxb2 {[%clk 0:02:08]} 16. Bxb7 {[%clk 0:02:11]}  Rab8 {[%clk 0:02:07]} 17. Rab1 {[%clk 0:02:10]}  Qxc2 {[%clk 0:02:07]} 18. d5 {[%clk 0:02:01]}  e4 {[%clk 0:02:04]} 19. Qb3 {[%clk 0:02:00]}  Qc5 {[%clk 0:01:50]} 20. d6 {[%clk 0:01:52]}  Rfd8 {[%clk 0:01:46]} 21. d7 {[%clk 0:01:51]}  Qe7 {[%clk 0:01:10]} 22. Qd5 {[%clk 0:01:45]}  e3 {[%clk 0:01:10]} 23. fxe3 {[%clk 0:01:44]}  Qxe3+ {[%clk 0:01:10]} 24. Kh1 {[%clk 0:01:45]}  Qg3 {[%clk 0:01:03]} 25. Rb3 {[%clk 0:01:32]}  Qe5 {[%clk 0:00:38]} 26. Qc6 {[%clk 0:01:16]}  Qe2 {[%clk 0:00:27]} 27. Rbd3 {[%clk 0:01:07]}  Be5 {[%clk 0:00:21]} 28. Qd5 {[%clk 0:00:56]}  Bc7 {[%clk 0:00:15]} 29. Qf3 {[%clk 0:00:18]}  Qe5 {[%clk 0:00:14]} 30. g3 {[%clk 0:00:17]}  Kg7 {[%clk 0:00:11]} 31. h4 {[%clk 0:00:17]}  h5 {[%clk 0:00:11]} 32. Kg2 {[%clk 0:00:17]}  Qb2+ {[%clk 0:00:08]} 33. Kh3 {[%clk 0:00:11]}  Qxb7 {[%clk 0:00:08]} 34. Rd5 {[%clk 0:00:10]}  Qb6 {[%clk 0:00:07]} 35. Qc3+ {[%clk 0:00:07]}  Qf6 {[%clk 0:00:06]} 36. Qd3 {[%clk 0:00:04]}  Qe6+ {[%clk 0:00:06]} 37. Kh2 {[%clk 0:00:04]}  Rb2+ {[%clk 0:00:06]} 38. Kg1 {[%clk 0:00:04]}  Bb6+ {[%clk 0:00:06]} 39. Rd4 {[%clk 0:00:03]}  Bxd4+ {[%clk 0:00:06]} 40. Qxd4+ {[%clk 0:00:04]}  Qf6 {[%clk 0:00:07]} 41. Qxa7 {[%clk 0:00:04]}  Qf3 {[%clk 0:00:06]} 42. Qd4+ {[%clk 0:00:04]}  Qf6 {[%clk 0:00:06]} 43. Qa7 {[%clk 0:00:03]}  Re2 {[%clk 0:00:06]} 44. Rf1 {[%clk 0:00:04]}  Qe6 {[%clk 0:00:05]} 45. Qd4+ {[%clk 0:00:04]}  Qe5 {[%clk 0:00:04]} 46. Qc4 {[%clk 0:00:03]}  Qe3+ {[%clk 0:00:05]} 47. Kh1 {[%clk 0:00:03]}  Qe4+ {[%clk 0:00:05]} 48. Qxe4 {[%clk 0:00:04]}  Rxe4 {[%clk 0:00:06]} 49. a4 {[%clk 0:00:04]}  Re7 {[%clk 0:00:07]} 50. a5 {[%clk 0:00:04]}  Rdxd7 {[%clk 0:00:08]} 0-1


[Site "https://www.chess.com"]

[Event "Titled Tuesday Blitz July 25 Early 2023"]
[White "Dehtiarov, Roman"]
[Black "ATM622"]
[WhiteFideId "14186640"]
[WhiteElo "2728"]
[BlackElo "2513"]
[Result "0-1"]
[Round "6"]
[TimeControl "180+2"]
[Date "2023.07.25"]
[WhiteClock "0:00:00"]
[BlackClock "0:00:04"]
[Board "76"]

1. c4 {[%clk 0:02:54]}  e5 {[%clk 0:02:57]} 2. g3 {[%clk 0:02:52]}  f5 {[%clk 0:02:55]} 3. Bg2 {[%clk 0:02:45]}  Nf6 {[%clk 0:02:55]} 4. Nc3 {[%clk 0:02:46]}  g6 {[%clk 0:02:53]} 5. d3 {[%clk 0:02:43]}  Bg7 {[%clk 0:02:53]} 6. e3 {[%clk 0:02:43]}  O-O {[%clk 0:02:53]} 7. Nge2 {[%clk 0:02:44]}  c6 {[%clk 0:02:54]} 8. O-O {[%clk 0:02:35]}  Kh8 {[%clk 0:02:53]} 9. f4 {[%clk 0:02:34]}  d6 {[%clk 0:02:51]} 10. b3 {[%clk 0:02:28]}  Nbd7 {[%clk 0:02:49]} 11. Bb2 {[%clk 0:02:26]}  Ng4 {[%clk 0:02:47]} 12. Qd2 {[%clk 0:02:23]}  Qb6 {[%clk 0:02:38]} 13. d4 {[%clk 0:02:16]}  Nxe3 {[%clk 0:02:25]} 14. Qxe3 {[%clk 0:01:05]}  exd4 {[%clk 0:02:20]} 15. Nxd4 {[%clk 0:00:50]}  Qxd4 {[%clk 0:02:08]} 16. Qxd4 {[%clk 0:00:50]}  Bxd4+ {[%clk 0:02:08]} 17. Kh1 {[%clk 0:00:51]}  Nf6 {[%clk 0:01:58]} 18. Rad1 {[%clk 0:00:50]}  c5 {[%clk 0:01:58]} 19. Rxd4 {[%clk 0:00:33]}  cxd4 {[%clk 0:01:58]} 20. Nb5 {[%clk 0:00:33]}  a5 {[%clk 0:01:33]} 21. a4 {[%clk 0:00:24]}  Kg8 {[%clk 0:01:22]} 22. Bxd4 {[%clk 0:00:23]}  Ne4 {[%clk 0:01:19]} 23. Re1 {[%clk 0:00:16]}  Bd7 {[%clk 0:01:17]} 24. Bxe4 {[%clk 0:00:08]}  fxe4 {[%clk 0:01:16]} 25. Nxd6 {[%clk 0:00:09]}  Bc6 {[%clk 0:01:14]} 26. Kg1 {[%clk 0:00:08]}  Rad8 {[%clk 0:01:12]} 27. Be5 {[%clk 0:00:08]}  Rd7 {[%clk 0:00:59]} 28. c5 {[%clk 0:00:06]}  Bd5 {[%clk 0:00:55]} 29. Re3 {[%clk 0:00:03]}  h6 {[%clk 0:00:49]} 30. Kf2 {[%clk 0:00:03]}  g5 {[%clk 0:00:49]} 31. Rc3 {[%clk 0:00:03]}  gxf4 {[%clk 0:00:33]} 32. gxf4 {[%clk 0:00:03]}  Kh7 {[%clk 0:00:31]} 33. Ke3 {[%clk 0:00:04]}  Rg8 {[%clk 0:00:30]} 34. Kd4 {[%clk 0:00:04]}  Bc6 {[%clk 0:00:28]} 35. Rg3 {[%clk 0:00:03]}  Rxg3 {[%clk 0:00:21]} 36. hxg3 {[%clk 0:00:04]}  Rd8 {[%clk 0:00:19]} 37. Ke3 {[%clk 0:00:04]}  Bd5 {[%clk 0:00:17]} 38. f5 {[%clk 0:00:03]}  Rd7 {[%clk 0:00:16]} 39. f6 {[%clk 0:00:01]}  Bxb3 {[%clk 0:00:17]} 40. Nxe4 {[%clk 0:00:01]}  Bxa4 {[%clk 0:00:12]} 41. Bc3 {[%clk 0:00:01]}  Bc2 {[%clk 0:00:11]} 42. Nd6 {[%clk 0:00:02]}  Bb3 {[%clk 0:00:08]} 43. Kd4 {[%clk 0:00:02]}  a4 {[%clk 0:00:07]} 44. Ke5 {[%clk 0:00:02]}  Kg6 {[%clk 0:00:07]} 45. g4 {[%clk 0:00:02]}  a3 {[%clk 0:00:07]} 46. Bd4 {[%clk 0:00:02]}  a2 {[%clk 0:00:07]} 47. Ba1 {[%clk 0:00:00]}  Bg8 {[%clk 0:00:04]} 0-1


[Site "https://www.chess.com"]

[Event "Titled Tuesday Blitz July 25 Early 2023"]
[White "Mayank Chakraborty"]
[Black "Kaplan, Avi Harrison"]
[WhiteFideId "25659766"]
[BlackFideId "30934559"]
[WhiteElo "2726"]
[BlackElo "2513"]
[Result "1-0"]
[Round "6"]
[TimeControl "180+2"]
[Date "2023.07.25"]
[WhiteClock "0:01:10"]
[BlackClock "0:00:03"]
[Board "77"]

1. d4 {[%clk 0:03:00]}  Nf6 {[%clk 0:02:58]} 2. c4 {[%clk 0:03:00]}  a6 {[%clk 0:02:58]} 3. Nc3 {[%clk 0:02:50]}  b5 {[%clk 0:02:56]} 4. cxb5 {[%clk 0:02:49]}  axb5 {[%clk 0:02:57]} 5. Nxb5 {[%clk 0:02:50]}  e5 {[%clk 0:02:58]} 6. dxe5 {[%clk 0:02:49]}  Ne4 {[%clk 0:02:58]} 7. Qd4 {[%clk 0:02:36]}  Bb7 {[%clk 0:02:43]} 8. e3 {[%clk 0:02:22]}  Bc5 {[%clk 0:02:28]} 9. Qc4 {[%clk 0:02:21]}  O-O {[%clk 0:02:13]} 10. Nf3 {[%clk 0:02:17]}  Qe7 {[%clk 0:02:06]} 11. Bd3 {[%clk 0:02:16]}  Bb4+ {[%clk 0:02:04]} 12. Ke2 {[%clk 0:02:15]}  Nc5 {[%clk 0:01:14]} 13. Qxb4 {[%clk 0:02:12]}  Nc6 {[%clk 0:01:14]} 14. Qh4 {[%clk 0:02:06]}  Nxd3 {[%clk 0:01:10]} 15. Qxe7 {[%clk 0:01:58]}  Nxc1+ {[%clk 0:01:03]} 16. Rhxc1 {[%clk 0:01:59]}  Nxe7 {[%clk 0:01:03]} 17. Rxc7 {[%clk 0:02:00]}  Ba6 {[%clk 0:01:00]} 18. Nd4 {[%clk 0:02:01]}  Rfb8 {[%clk 0:00:53]} 19. Rc5 {[%clk 0:01:53]}  Nc6 {[%clk 0:00:46]} 20. Kf3 {[%clk 0:01:44]}  Nxd4+ {[%clk 0:00:43]} 21. Nxd4 {[%clk 0:01:44]}  Rxb2 {[%clk 0:00:43]} 22. Rc2 {[%clk 0:01:41]}  Rb4 {[%clk 0:00:33]} 23. Kg3 {[%clk 0:01:37]}  g6 {[%clk 0:00:31]} 24. f4 {[%clk 0:01:34]}  Bd3 {[%clk 0:00:31]} 25. Rc3 {[%clk 0:01:30]}  Be4 {[%clk 0:00:30]} 26. Rb3 {[%clk 0:01:31]}  Rc4 {[%clk 0:00:29]} 27. a4 {[%clk 0:01:30]}  Raxa4 {[%clk 0:00:27]} 28. Rxa4 {[%clk 0:01:20]}  Rxa4 {[%clk 0:00:28]} 29. Rb2 {[%clk 0:01:16]}  Ra3 {[%clk 0:00:28]} 30. Kf2 {[%clk 0:01:17]}  Kg7 {[%clk 0:00:28]} 31. Nb5 {[%clk 0:01:15]}  Rd3 {[%clk 0:00:26]} 32. Nd6 {[%clk 0:01:15]}  Bc6 {[%clk 0:00:26]} 33. Ne8+ {[%clk 0:01:15]}  Kf8 {[%clk 0:00:26]} 34. Nf6 {[%clk 0:01:16]}  Kg7 {[%clk 0:00:26]} 35. g4 {[%clk 0:01:12]}  d6 {[%clk 0:00:08]} 36. Rb8 {[%clk 0:01:11]}  dxe5 {[%clk 0:00:07]} 37. g5 {[%clk 0:01:12]}  Rd2+ {[%clk 0:00:01]} 38. Ke1 {[%clk 0:01:11]}  Rd8 {[%clk 0:00:01]} 39. Rxd8 {[%clk 0:01:10]}  Be8 {[%clk 0:00:02]} 40. Rxe8 {[%clk 0:01:09]}  h5 {[%clk 0:00:03]} 41. Rg8# {[%clk 0:01:10]} 1-0


[Site "https://www.chess.com"]

[Event "Titled Tuesday Blitz July 25 Early 2023"]
[White "realmadridfc123"]
[Black "NigelDwarf"]
[WhiteElo "2716"]
[BlackElo "2511"]
[Result "0-1"]
[Round "6"]
[TimeControl "180+2"]
[Date "2023.07.25"]
[WhiteClock "0:01:17"]
[BlackClock "0:01:20"]
[Board "78"]

1. c4 {[%clk 0:03:00]}  Nf6 {[%clk 0:02:59]} 2. Nc3 {[%clk 0:02:59]}  g6 {[%clk 0:02:59]} 3. e4 {[%clk 0:03:00]}  d6 {[%clk 0:03:00]} 4. d4 {[%clk 0:03:00]}  Bg7 {[%clk 0:03:00]} 5. Be3 {[%clk 0:03:00]}  Ng4 {[%clk 0:02:59]} 6. Bf4 {[%clk 0:02:59]}  e5 {[%clk 0:02:54]} 7. dxe5 {[%clk 0:02:59]}  Nxe5 {[%clk 0:02:50]} 8. Be2 {[%clk 0:02:36]}  Be6 {[%clk 0:02:47]} 9. Bxe5 {[%clk 0:02:33]}  Bxe5 {[%clk 0:02:46]} 10. Nf3 {[%clk 0:02:33]}  Bg7 {[%clk 0:02:42]} 11. O-O {[%clk 0:02:31]}  Nc6 {[%clk 0:02:37]} 12. Rc1 {[%clk 0:02:29]}  Ne5 {[%clk 0:02:20]} 13. Nd2 {[%clk 0:02:27]}  h5 {[%clk 0:02:17]} 14. f4 {[%clk 0:02:28]}  Ng4 {[%clk 0:02:16]} 15. Bxg4 {[%clk 0:02:06]}  Bd4+ {[%clk 0:02:10]} 16. Kh1 {[%clk 0:02:05]}  hxg4 {[%clk 0:02:10]} 17. g3 {[%clk 0:02:01]}  Qf6 {[%clk 0:02:07]} 18. Qe2 {[%clk 0:01:55]}  O-O-O {[%clk 0:02:00]} 19. f5 {[%clk 0:01:49]}  gxf5 {[%clk 0:01:56]} 20. exf5 {[%clk 0:01:50]}  Rxh2+ {[%clk 0:01:20]} 21. Qxh2 {[%clk 0:01:17]}  Rh8 {[%clk 0:01:20]} 0-1


[Site "https://www.chess.com"]

[Event "Titled Tuesday Blitz July 25 Early 2023"]
[White "Kuznetsova, Olga"]
[Black "Darini, Pouria"]
[WhiteFideId "4191323"]
[BlackFideId "12502200"]
[WhiteElo "2511"]
[BlackElo "2714"]
[Result "0-1"]
[Round "6"]
[TimeControl "180+2"]
[Date "2023.07.25"]
[WhiteClock "0:00:23"]
[BlackClock "0:02:04"]
[Board "79"]

1. d4 {[%clk 0:02:52]}  Nf6 {[%clk 0:02:59]} 2. Bf4 {[%clk 0:02:50]}  e6 {[%clk 0:02:58]} 3. e3 {[%clk 0:02:50]}  d5 {[%clk 0:02:57]} 4. Nd2 {[%clk 0:02:49]}  c5 {[%clk 0:02:57]} 5. c3 {[%clk 0:02:49]}  Nc6 {[%clk 0:02:57]} 6. Bd3 {[%clk 0:02:48]}  Bd6 {[%clk 0:02:50]} 7. Bg3 {[%clk 0:02:47]}  e5 {[%clk 0:02:47]} 8. dxc5 {[%clk 0:02:45]}  Bxc5 {[%clk 0:02:47]} 9. e4 {[%clk 0:02:45]}  O-O {[%clk 0:02:46]} 10. Ngf3 {[%clk 0:02:42]}  Re8 {[%clk 0:02:46]} 11. Qe2 {[%clk 0:02:41]}  Bg4 {[%clk 0:02:38]} 12. h3 {[%clk 0:02:30]}  Bh5 {[%clk 0:02:38]} 13. Bh4 {[%clk 0:02:31]}  Bg6 {[%clk 0:02:37]} 14. exd5 {[%clk 0:02:23]}  e4 {[%clk 0:02:31]} 15. Nxe4 {[%clk 0:02:06]}  Qxd5 {[%clk 0:02:21]} 16. Bxf6 {[%clk 0:01:29]}  Bxe4 {[%clk 0:02:19]} 17. O-O-O {[%clk 0:01:09]}  gxf6 {[%clk 0:02:11]} 18. Bc4 {[%clk 0:00:41]}  Qf5 {[%clk 0:02:10]} 19. Nh4 {[%clk 0:00:40]}  Qf4+ {[%clk 0:02:10]} 20. Qd2 {[%clk 0:00:39]}  Qxh4 {[%clk 0:02:09]} 21. Rhe1 {[%clk 0:00:23]}  Rad8 {[%clk 0:02:04]} 0-1


[Site "https://www.chess.com"]